bitfinex-derivatives/quotes_BTCF0:USTF0_20250828
["timestamp","ask_amount","ask_price","bid_price","bid_amount"]
[1756357865442,0.22054553,113090.0,113080.0,0.003]
[1756357866538,0.22154553,113090.0,113080.0,0.002]
[1756357867646,0.22154553,113090.0,113070.0,0.39173365]
[1756357867846,0.08304,113080.0,113070.0,0.39173365]
[1756357868044,0.05505,113070.0,113050.0,0.00566]
[1756357868250,0.11198,113050.0,113040.0,0.23262533]
[1756357868452,0.11198,113050.0,113040.0,0.6042989]
[1756357868750,0.13997,113050.0,113040.0,0.6042989]
[1756357869145,0.13997,113050.0,113040.0,0.49478916]
[1756357869541,0.13997,113050.0,113040.0,0.6042989]
[1756357869848,0.13997,113050.0,113040.0,0.6072989]
[1756357870349,0.13997,113050.0,113040.0,0.49778916]
[1756357870650,0.13997,113050.0,113040.0,0.50178916]
[1756357873845,0.11699,113050.0,113040.0,0.50178916]
[1756357874246,0.13997,113050.0,113040.0,0.50178916]
[1756357875145,0.1079,113050.0,113040.0,0.50178916]
[1756357875450,0.13997,113050.0,113040.0,0.50178916]
[1756357875950,0.1079,113050.0,113040.0,0.41333626]
[1756357876158,0.1416,113050.0,113040.0,0.41333626]
[1756357876359,0.1416,113050.0,113040.0,0.40767626]
[1756357877055,0.1416,113050.0,113040.0,0.49613416]
[1756357877257,0.1416,113050.0,113040.0,0.40767626]
[1756357878753,0.3916,113050.0,113040.0,0.40767626]
[1756357879259,0.3916,113050.0,113040.0,0.02694269]
[1756357879457,0.76327357,113050.0,113040.0,0.007]
[1756357879651,0.3916,113050.0,113040.0,0.007]
[1756357879857,0.15915871,113050.0,113040.0,0.007]
[1756357880760,0.15915871,113050.0,113040.0,0.004]
[1756357881559,0.07448871,113050.0,113030.0,0.37167357]
[1756357881758,0.14169,113040.0,113030.0,0.38073357]
[1756357882557,0.01765871,113050.0,113020.0,0.02896401]
[1756357882558,0.08616,113030.0,113020.0,0.02896401]
[1756357882758,0.13969,113030.0,113020.0,0.03216401]
[1756357883056,0.13969,113030.0,113020.0,0.03416401]
[1756357884361,0.13769,113030.0,113020.0,0.03416401]
[1756357884858,0.14655932,113030.0,113000.0,0.1138536]
[1756357885063,0.11815,113020.0,113010.0,0.01946]
[1756357885256,0.11715,113020.0,113010.0,0.01946]
[1756357886562,0.13969,113020.0,113010.0,0.39113357]
[1756357886758,0.13969,113020.0,113010.0,0.01946]
[1756357886965,0.13969,113020.0,113010.0,0.0104]
[1756357887154,0.76136357,113020.0,113000.0,0.0267083]
[1756357887355,0.51146357,113020.0,113000.0,0.0287083]
[1756357887555,0.11177,113010.0,113000.0,0.0247083]
[1756357887760,0.11177,113010.0,113000.0,0.005]
[1756357887761,0.15969977,113010.0,113000.0,0.005]
[1756357887963,0.15869977,113010.0,113000.0,0.002]
[1756357888164,0.11815,113000.0,112990.0,0.39593357]
[1756357888761,0.11615,113000.0,112990.0,0.39593357]
[1756357888964,0.67720357,113000.0,112970.0,0.10255323]
[1756357889266,0.05553,112980.0,112970.0,0.54284207]
[1756357889565,0.05353,112980.0,112970.0,0.55350207]
[1756357889967,0.07607,112980.0,112970.0,0.50350207]
[1756357890763,0.10399,112980.0,112970.0,0.50350207]
[1756357890964,0.13769,112980.0,112970.0,0.50450207]
[1756357891668,0.13769,112980.0,112970.0,0.1348285]
[1756357891867,0.10399,112980.0,112970.0,0.41799357]
[1756357892168,0.50936357,112980.0,112970.0,0.003]
[1756357892765,0.06344,112980.0,112970.0,0.51690627]
[1756357893159,0.13769,112980.0,112970.0,0.51690627]
[1756357893770,0.13769,112980.0,112970.0,0.51490627]
[1756357894560,0.13769,112980.0,112970.0,0.51390627]
[1756357894766,0.13869,112980.0,112970.0,0.51390627]
[1756357895462,0.13869,112980.0,112970.0,0.50324627]
[1756357895668,0.13869,112980.0,112970.0,0.51390627]
[1756357895869,0.13869,112980.0,112970.0,0.1315727]
[1756357896164,0.13869,112980.0,112970.0,0.50324627]
[1756357897072,0.76036357,112980.0,112960.0,0.01985137]
[1756357897263,0.14169,112970.0,112960.0,0.01985137]
[1756357897569,0.05553,112970.0,112950.0,0.0001]
[1756357897761,0.51336357,112960.0,112950.0,0.0001]
[1756357897968,0.14169,112950.0,112940.0,0.0101]
[1756357898162,0.14169,112950.0,112940.0,0.38967357]
[1756357898465,0.14169,112950.0,112940.0,0.50486977]
[1756357898466,0.14069,112950.0,112940.0,0.50486977]
[1756357898662,0.14069,112950.0,112940.0,0.04466]
[1756357898865,0.14069,112950.0,112940.0,0.41633357]
[1756357899064,0.02992,112950.0,112940.0,0.51552977]
[1756357899258,0.04528,112950.0,112940.0,0.58055897]
[1756357899462,0.07166658,112960.0,112950.0,0.1061283]
[1756357899665,0.13900658,112960.0,112950.0,0.57089107]
[1756357899870,0.16154658,112960.0,112950.0,0.58155107]
[1756357900071,0.16254658,112960.0,112950.0,0.58155107]
[1756357900272,0.21425658,112960.0,112950.0,0.58155107]
[1756357900564,0.17370658,112960.0,112950.0,0.58155107]
[1756357900769,0.19524658,112960.0,112950.0,0.58155107]
[1756357900976,0.19724658,112960.0,112950.0,0.58155107]
[1756357901470,0.21525658,112960.0,112950.0,0.58155107]
[1756357901777,0.21425658,112960.0,112950.0,0.57089107]
[1756357902462,0.21425658,112960.0,112950.0,0.58155107]
[1756357902667,0.21425658,112960.0,112950.0,0.1448483]
[1756357902862,0.21425658,112960.0,112950.0,0.58155107]
[1756357903067,0.21725658,112960.0,112950.0,0.58155107]
[1756357904072,0.21725658,112960.0,112950.0,0.57089107]
[1756357905076,0.21725658,112960.0,112950.0,0.58155107]
[1756357906168,0.21725658,112960.0,112950.0,0.57089107]
[1756357906572,0.21725658,112960.0,112950.0,0.56489107]
[1756357906780,0.21725658,112960.0,112950.0,0.57089107]
[1756357907077,0.21574658,112960.0,112950.0,0.58155107]
[1756357907680,0.16101658,112960.0,112950.0,0.58155107]
[1756357907882,0.19320658,112960.0,112950.0,0.58155107]
[1756357908181,0.21738658,112960.0,112950.0,0.58155107]
[1756357908576,0.18519658,112960.0,112950.0,0.58155107]
[1756357908775,0.12084658,112960.0,112950.0,0.58155107]
[1756357908967,0.14280658,112960.0,112950.0,0.58155107]
[1756357909173,0.17499658,112960.0,112950.0,0.58155107]
[1756357909378,0.19917658,112960.0,112950.0,0.58155107]
[1756357909675,0.10548658,112960.0,112950.0,0.58155107]
[1756357909978,0.07556658,112960.0,112950.0,0.83155107]
[1756357910677,0.10432658,112960.0,112950.0,0.83155107]
[1756357911480,0.07556658,112960.0,112950.0,0.83155107]
[1756357911676,0.005,112960.0,112950.0,0.83155107]
[1756357911876,0.005,112960.0,112950.0,1.20155107]
[1756357912183,0.005,112960.0,112950.0,1.26825384]
[1756357912677,0.03376,112960.0,112950.0,0.3948483]
[1756357912882,0.03376,112960.0,112950.0,0.83155107]
[1756357913180,0.03376,112960.0,112950.0,0.58155107]
[1756357914176,0.18529313,112960.0,112950.0,0.03966]
[1756357914481,0.18529313,112960.0,112950.0,0.56489087]
[1756357914482,0.14652,112960.0,112950.0,0.56489087]
[1756357914974,0.07119,112960.0,112950.0,0.57555087]
[1756357915280,0.005,112960.0,112950.0,0.57555087]
[1756357915475,0.03376,112960.0,112950.0,0.57555087]
[1756357915881,0.005,112960.0,112950.0,0.82555087]
[1756357917679,0.03376,112960.0,112950.0,0.82555087]
[1756357918083,0.005,112960.0,112950.0,0.82555087]
[1756357918982,0.005,112960.0,112950.0,1.19555087]
[1756357919183,0.005,112960.0,112950.0,1.20555087]
[1756357920083,0.005,112960.0,112950.0,0.84555087]
[1756357920279,0.005,112960.0,112950.0,1.20555087]
[1756357920587,0.0001,112970.0,112960.0,0.1162401]
[1756357920787,0.02886,112980.0,112970.0,0.1162323]
[1756357920986,0.02886,112980.0,112970.0,0.57237167]
[1756357920987,0.05373346,112980.0,112970.0,0.57237167]
[1756357921182,0.06920346,112980.0,112970.0,0.57237167]
[1756357921384,0.16649346,112980.0,112970.0,0.57237167]
[1756357922086,0.05773346,112980.0,112970.0,0.57237167]
[1756357922886,0.06073346,112980.0,112970.0,0.57237167]
[1756357923088,0.06073346,112980.0,112970.0,1.39617167]
[1756357923284,0.07620346,112980.0,112970.0,0.1356689]
[1756357923497,0.06073346,112980.0,112970.0,0.57237167]
[1756357924280,0.06073346,112980.0,112970.0,1.39617167]
[1756357924693,0.06073346,112980.0,112970.0,0.57237167]
[1756357924894,0.06073346,112980.0,112970.0,1.39617167]
[1756357925481,0.06073346,112980.0,112970.0,1.39613167]
[1756357926186,0.07620346,112980.0,112970.0,1.39613167]
[1756357926586,0.06073346,112980.0,112970.0,1.39613167]
[1756357926793,0.03197346,112980.0,112970.0,1.39613167]
[1756357927489,0.06073346,112980.0,112970.0,1.39613167]
[1756357927995,0.07620346,112980.0,112970.0,0.57237167]
[1756357928190,0.07620346,112980.0,112970.0,1.39613167]
[1756357928495,0.06057606,112980.0,112970.0,1.39613167]
[1756357929294,0.06057606,112980.0,112970.0,1.3318663]
[1756357930695,0.17333606,112980.0,112970.0,0.1356689]
[1756357931003,0.09800606,112980.0,112970.0,1.3318263]
[1756357931693,0.09800606,112980.0,112970.0,1.3317863]
[1756357932493,0.13019606,112980.0,112970.0,1.3317863]
[1756357932796,0.15437606,112980.0,112970.0,1.3317863]
[1756357933093,0.14114606,112980.0,112970.0,0.1356689]
[1756357933288,0.14852,112980.0,112970.0,1.3211263]
[1756357933599,0.1732037,112980.0,112970.0,0.4974463]
[1756357933994,0.1732037,112980.0,112970.0,0.5081063]
[1756357934994,0.14852,112980.0,112970.0,0.5081063]
[1756357935195,0.17320513,112980.0,112970.0,1.3317863]
[1756357935491,0.17320513,112980.0,112970.0,1.3210863]
[1756357936094,0.17320513,112980.0,112970.0,0.4974463]
[1756357936398,0.14852,112980.0,112970.0,0.4974463]
[1756357937393,0.14852,112980.0,112970.0,0.5081063]
[1756357937593,0.05123,112980.0,112970.0,0.5081063]
[1756357937790,0.03576,112980.0,112970.0,0.5081063]
[1756357938093,0.1478,112980.0,112970.0,0.5081063]
[1756357938294,0.1478,112980.0,112970.0,0.1356689]
[1756357938489,0.1478,112980.0,112970.0,0.5081063]
[1756357939295,0.1478,112980.0,112970.0,0.4974463]
[1756357940595,0.1478,112980.0,112970.0,1.3210463]
[1756357940794,0.1478,112980.0,112970.0,0.4974463]
[1756357941703,0.1478,112980.0,112970.0,0.5081063]
[1756357941887,0.1478,112980.0,112970.0,0.4974463]
[1756357942093,0.03312,112970.0,112960.0,0.3678776]
[1756357942398,0.14181,112970.0,112960.0,0.740215]
[1756357943201,0.14281,112970.0,112960.0,0.740215]
[1756357944300,0.14481,112970.0,112960.0,0.740215]
[1756357944497,0.14481,112970.0,112960.0,0.750875]
[1756357946015,0.14481,112970.0,112960.0,0.740215]
[1756357946500,0.14481,112970.0,112960.0,0.750875]
[1756357947504,0.14481,112970.0,112960.0,0.488675]
[1756357952005,0.14481,112970.0,112960.0,0.1055776]
[1756357952305,0.14481,112970.0,112960.0,0.478015]
[1756357953397,0.14481,112970.0,112960.0,0.01706]
[1756357953801,0.14481,112970.0,112960.0,0.3894974]
[1756357954197,0.14481,112970.0,112960.0,0.01706]
[1756357954401,0.14181,112960.0,112950.0,0.1056833]
[1756357954608,0.21200841,112960.0,112950.0,0.4886807]
[1756357955408,0.15559841,112960.0,112950.0,0.4886807]
[1756357955710,0.11528841,112960.0,112950.0,0.4886807]
[1756357955910,0.11628841,112960.0,112950.0,0.4886807]
[1756357956507,0.10096841,112960.0,112950.0,0.4886807]
[1756357956701,0.10096841,112960.0,112950.0,1.3139607]
[1756357956904,0.07119841,112960.0,112950.0,1.5639607]
[1756357959911,0.10096841,112960.0,112950.0,1.5639607]
[1756357960306,0.07119841,112960.0,112950.0,1.5639607]
[1756357961109,0.10096841,112960.0,112950.0,1.5639607]
[1756357964110,0.07119841,112960.0,112950.0,1.5639607]
[1756357965012,0.10096841,112960.0,112950.0,1.5639607]
[1756357968620,0.13560841,112960.0,112950.0,1.5639607]
[1756357969120,0.15841841,112960.0,112950.0,1.5639607]
[1756357969620,0.13560841,112960.0,112950.0,1.5639607]
[1756357969815,0.10096841,112960.0,112950.0,1.5639607]
[1756357970021,0.10096841,112960.0,112950.0,1.8739607]
[1756357970927,0.10096841,112960.0,112950.0,1.5639607]
[1756357973020,0.10096841,112960.0,112950.0,1.1915233]
[1756357973217,0.11683841,112960.0,112950.0,1.3139607]
[1756357978135,0.19356841,112960.0,112950.0,1.3123607]
[1756357978334,0.21637841,112960.0,112950.0,0.4886807]
[1756357978534,0.21637841,112960.0,112950.0,1.3123607]
[1756357978935,0.21637841,112960.0,112950.0,0.4886807]
[1756357979234,0.21637841,112960.0,112950.0,1.3123607]
[1756357980333,0.21637841,112960.0,112950.0,0.4886807]
[1756357980635,0.21637841,112960.0,112950.0,1.3123607]
[1756357982427,0.001,112960.0,112950.0,1.9123607]
[1756357982630,0.0001,112970.0,112960.0,0.1162407]
[1756357982831,0.14417,112980.0,112970.0,0.1162328]
[1756357983138,0.14407,112980.0,112970.0,1.3123502]
[1756357984230,0.14407,112980.0,112970.0,1.3123102]
[1756357985142,0.14407,112980.0,112970.0,1.3016502]
[1756357985341,0.14507,112980.0,112970.0,1.3016502]
[1756357985938,0.14607,112980.0,112970.0,1.3016502]
[1756357986438,0.14607,112980.0,112970.0,1.3123102]
[1756357989036,0.14607,112980.0,112970.0,0.9398728]
[1756357989229,0.14607,112980.0,112970.0,1.3123102]
[1756357990037,0.11143,112980.0,112970.0,1.3123102]
[1756357990235,0.03066,112980.0,112970.0,1.3123102]
[1756357991139,0.04653,112980.0,112970.0,1.3123102]
[1756357993543,0.14607,112980.0,112970.0,1.3122302]
[1756357993942,0.14607,112980.0,112970.0,1.3121902]
[1756357996344,0.05065,112980.0,112970.0,1.3121902]
[1756357996545,0.002,112980.0,112970.0,1.3121902]
[1756357996744,0.002,112980.0,112970.0,1.6921902]
[1756357998646,0.002,112980.0,112970.0,1.9543902]
[1756357998939,0.02833,112990.0,112970.0,1.9543902]
[1756357999146,0.04389,112990.0,112980.0,0.488663]
[1756357999345,0.06624,112990.0,112980.0,0.488663]
[1756357999750,0.09808,112990.0,112980.0,0.488663]
[1756358000241,0.14042,112990.0,112980.0,1.312103]
[1756358001748,0.14142,112990.0,112980.0,1.312103]
[1756358002250,0.14242,112990.0,112980.0,1.301403]
[1756358002549,0.14242,112990.0,112980.0,0.478003]
[1756358003648,0.14242,112990.0,112980.0,0.488663]
[1756358007648,0.06824,112990.0,112980.0,0.488663]
[1756358008646,0.12383,112990.0,112980.0,0.1162256]
[1756358008850,0.14242,112990.0,112980.0,0.488663]
[1756358014556,0.03023,112990.0,112980.0,0.488663]
[1756358014860,0.002,112990.0,112980.0,1.118663]
[1756358015353,1e-07,112990.0,112980.0,1.118663]
[1756358016462,0.02833,113000.0,112990.0,0.1055578]
[1756358016760,0.02823,113000.0,112990.0,1.33136834]
[1756358021459,0.02823,113000.0,112990.0,0.50820834]
[1756358021658,0.02823,113000.0,112990.0,1.33124834]
[1756358024766,0.02823,113000.0,112990.0,0.95881094]
[1756358025069,0.02823,113000.0,112990.0,1.33124834]
[1756358025867,0.02823,113000.0,112990.0,0.50820834]
[1756358026068,0.08471,113000.0,112990.0,0.50820834]
[1756358026267,0.13974,113000.0,112990.0,1.33112834]
[1756358027765,0.13974,113000.0,112990.0,1.24263054]
[1756358028170,0.13974,113000.0,112990.0,1.33112834]
[1756358030772,0.117,113000.0,112990.0,1.33112834]
[1756358031266,0.08471,113000.0,112990.0,1.33112834]
[1756358031472,0.06612,113000.0,112990.0,1.33112834]
[1756358031672,0.02823,113000.0,112990.0,1.33112834]
[1756358033071,0.08749474,113010.0,113000.0,0.0884899]
[1756358033271,0.16757474,113010.0,113000.0,0.4886473]
[1756358034872,0.16857474,113010.0,113000.0,0.4886473]
[1756358035876,0.16957474,113010.0,113000.0,0.4886473]
[1756358040882,0.16069086,113010.0,113000.0,0.4886473]
[1756358041086,0.01965086,113010.0,113000.0,1.4910847]
[1756358041682,6e-08,113010.0,113000.0,1.4910847]
[1756358041884,0.0001,113020.0,113010.0,0.1162021]
[1756358042082,0.04595981,113030.0,113020.0,0.1161943]
[1756358042286,0.11835702,113030.0,113020.0,0.4886317]
[1756358042586,0.06164981,113030.0,113020.0,0.4886317]
[1756358042786,0.06164981,113030.0,113020.0,1.3112317]
[1756358044087,0.01785981,113030.0,113020.0,1.5622317]
[1756358045088,0.01785981,113030.0,113020.0,1.57127905]
[1756358045283,0.01785981,113030.0,113020.0,1.57227905]
[1756358047290,0.01785981,113030.0,113020.0,0.74967905]
[1756358047593,0.04585981,113030.0,113020.0,0.7406317]
[1756358047890,0.04585981,113030.0,113020.0,1.5630717]
[1756358048689,0.04585981,113030.0,113020.0,0.7406317]
[1756358048883,0.40889981,113030.0,113020.0,0.0904743]
[1756358050294,0.40889981,113030.0,113020.0,0.0894743]
[1756358050488,0.40889981,113030.0,113020.0,0.0884743]
[1756358050690,0.40989981,113030.0,113020.0,0.0884743]
[1756358051491,0.41089981,113030.0,113020.0,0.0884743]
[1756358055495,0.41089981,113030.0,113020.0,0.4609117]
[1756358058194,0.41089981,113030.0,113020.0,0.0884743]
[1756358059001,0.08415,113020.0,113010.0,0.10824059]
[1756358059201,0.5131474,113020.0,113010.0,0.10824059]
[1756358059896,0.14071,113020.0,113010.0,0.10824059]
[1756358064099,0.4289974,113020.0,113000.0,0.0884851]
[1756358064301,0.14071,113010.0,113000.0,0.0884851]
[1756358064499,0.15876882,113010.0,113000.0,0.0884851]
[1756358064903,0.15876882,113010.0,113000.0,0.1055451]
[1756358065497,0.53120622,113010.0,113000.0,0.0884851]
[1756358065699,0.53220622,113010.0,113000.0,0.0884851]
[1756358066493,0.15976882,113010.0,113000.0,0.0884851]
[1756358066693,0.16076882,113010.0,113000.0,0.0884851]
[1756358074107,0.14271,113010.0,113000.0,0.0884851]
[1756358074910,0.96467,113010.0,113000.0,0.0884851]
[1756358076407,1.3371074,113010.0,113000.0,0.0884851]
[1756358077207,1.3371074,113010.0,112990.0,0.0884952]
[1756358077412,0.5131474,113000.0,112990.0,0.0884952]
[1756358078011,0.14071,113000.0,112990.0,0.0884952]
[1756358079407,0.06552694,113000.0,112980.0,0.0885013]
[1756358079613,0.14071,112990.0,112980.0,0.1055613]
[1756358081915,0.14071,112990.0,112980.0,0.01706]
[1756358082114,0.14071,112990.0,112980.0,0.1055651]
[1756358082316,0.05656,112990.0,112970.0,0.4609452]
[1756358082617,0.14071,112980.0,112970.0,0.4780052]
[1756358082908,0.21236852,112980.0,112970.0,0.4780052]
[1756358083617,0.21236852,112980.0,112970.0,0.1055678]
[1756358083912,0.21236852,112980.0,112970.0,0.4780052]
[1756358084111,0.14071,112970.0,112960.0,0.3678733]
[1756358084310,0.14071,112970.0,112960.0,0.7402107]
[1756358084511,0.14071,112970.0,112960.0,0.7508707]
[1756358086017,0.02704,112970.0,112960.0,0.7508707]
[1756358086216,0.02704,112970.0,112960.0,0.7518707]
[1756358086808,0.02704,112970.0,112960.0,0.1172333]
[1756358087115,0.04366,112970.0,112960.0,0.4906707]
[1756358087615,0.09658,112970.0,112960.0,0.4906707]
[1756358087816,0.06471,112970.0,112960.0,0.4906707]
[1756358088211,0.04366,112970.0,112960.0,0.4906707]
[1756358088522,0.13433412,112980.0,112970.0,0.116233]
[1756358088713,0.13423412,112980.0,112970.0,0.4886704]
[1756358088913,0.11761412,112980.0,112970.0,0.4886704]
[1756358089117,0.13423412,112980.0,112970.0,0.4886704]
[1756358089816,0.15528412,112980.0,112970.0,0.4886704]
[1756358090712,0.07165852,112980.0,112970.0,0.7386704]
[1756358091017,0.02785,112990.0,112980.0,0.1162251]
[1756358091213,0.04437,112990.0,112980.0,0.4886625]
[1756358092618,0.04537,112990.0,112980.0,0.4886625]
[1756358093214,0.04637,112990.0,112980.0,0.4886625]
[1756358094308,0.06742,112990.0,112980.0,0.4886625]
[1756358094515,0.12223,112990.0,112980.0,0.4886625]
[1756358094715,0.06742,112990.0,112980.0,0.4886625]
[1756358095222,0.04637,112990.0,112980.0,0.4886625]
[1756358096316,0.02975,112990.0,112980.0,0.4886625]
[1756358096516,0.04637,112990.0,112980.0,0.4886625]
[1756358096723,0.06742,112990.0,112980.0,0.1162251]
[1756358096924,0.06742,112990.0,112980.0,0.4886625]
[1756358099425,0.002,112990.0,112980.0,0.4886625]
[1756358099927,0.02975,112990.0,112980.0,0.4886625]
[1756358101528,0.002,112990.0,112980.0,0.4886625]
[1756358102118,0.02975,112990.0,112980.0,0.4886625]
[1756358103131,0.002,112990.0,112980.0,0.4886625]
[1756358103940,0.02975,112990.0,112980.0,0.4886625]
[1756358104135,0.02975,112990.0,112980.0,1.3100625]
[1756358104332,0.02975,112990.0,112980.0,1.5600625]
[1756358104528,0.0001,113000.0,112990.0,0.1055574]
[1756358104734,0.10637415,113010.0,113000.0,0.1162095]
[1756358105033,0.10627415,113010.0,113000.0,0.4886469]
[1756358105235,0.08333415,113010.0,113000.0,0.4886469]
[1756358105940,0.08433415,113010.0,113000.0,0.4886469]
[1756358106440,0.04666415,113010.0,113000.0,1.4210843]
[1756358106841,0.04666415,113010.0,113000.0,1.1110843]
[1756358107037,0.04766415,113010.0,113000.0,1.1110843]
[1756358107537,0.02975,113010.0,113000.0,1.1110843]
[1756358107936,0.002,113010.0,113000.0,1.1110843]
[1756358108137,0.002,113010.0,113000.0,1.4210843]
[1756358108334,0.002,113010.0,113000.0,1.1110843]
[1756358108539,0.0001,113020.0,113010.0,0.102342]
[1756358108734,0.10781,113030.0,113020.0,0.1109942]
[1756358109042,0.10781,113030.0,113020.0,0.4834316]
[1756358109043,0.13958,113030.0,113020.0,0.4834316]
[1756358110043,0.1482864,113030.0,113020.0,0.4834316]
[1756358110242,0.1502864,113030.0,113020.0,0.4834316]
[1756358111645,0.1194164,113030.0,113020.0,0.50283673]
[1756358111842,0.1512864,113030.0,113020.0,0.50283673]
[1756358114743,0.14258,113030.0,113020.0,0.50283673]
[1756358115747,0.14258,113030.0,113020.0,1.32375673]
[1756358116543,0.11964,113030.0,113020.0,1.32375673]
[1756358116848,0.06842,113030.0,113020.0,1.32375673]
[1756358117047,0.12503,113030.0,113020.0,1.32375673]
[1756358117349,0.14434,113030.0,113020.0,0.50283673]
[1756358117551,0.14434,113030.0,113020.0,1.32371673]
[1756358117745,0.14434,113030.0,113020.0,0.13039933]
[1756358117951,0.14434,113030.0,113020.0,1.16863673]
[1756358118151,0.14434,113030.0,113020.0,0.79619933]
[1756358118353,0.14434,113030.0,113020.0,1.16863673]
[1756358118551,0.14434,113030.0,113020.0,0.50283673]
[1756358121548,0.11071,113030.0,113020.0,0.41436253]
[1756358121848,0.08433,113020.0,112990.0,0.11648891]
[1756358122045,0.14133,113010.0,113000.0,0.4280774]
[1756358122246,0.14133,113010.0,113000.0,0.5265674]
[1756358122442,0.14133,113010.0,113000.0,0.5165674]
[1756358122746,0.78164345,113010.0,113000.0,0.02238]
[1756358123055,0.14133,113000.0,112990.0,0.53590951]
[1756358123245,0.14033,113000.0,112990.0,0.54850951]
[1756358124153,0.14033,113000.0,112990.0,0.1567366]
[1756358124352,0.14033,113000.0,112990.0,0.537834]
[1756358124551,0.14907287,113000.0,112990.0,0.537834]
[1756358124753,0.14033,113000.0,112990.0,0.537834]
[1756358125254,0.14033,113000.0,112990.0,0.513174]
[1756358125948,0.14033,113000.0,112990.0,0.515174]
[1756358126252,0.14033,113000.0,112990.0,0.516174]
[1756358126753,0.14033,113000.0,112990.0,0.4276774]
[1756358127055,0.7627674,113000.0,112990.0,0.003]
[1756358127550,0.307,113000.0,112970.0,0.48476743]
[1756358127751,0.307,113000.0,112970.0,0.05952313]
[1756358127752,0.14133,112980.0,112970.0,0.05952313]
[1756358127955,0.15020192,112980.0,112970.0,0.13803663]
[1756358128455,0.15020192,112980.0,112970.0,0.51047403]
[1756358128656,0.15020192,112980.0,112970.0,0.13803663]
[1756358128858,0.15020192,112980.0,112970.0,0.51047403]
[1756358129258,0.14133,112980.0,112970.0,0.51047403]
[1756358129454,0.14133,112980.0,112970.0,0.51147403]
[1756358130659,0.14133,112980.0,112970.0,0.13903663]
[1756358130855,0.14133,112980.0,112970.0,0.51147403]
[1756358131358,0.14133,112980.0,112970.0,0.77367403]
[1756358132058,0.14133,112980.0,112970.0,0.77667403]
[1756358132656,0.15026601,112980.0,112970.0,0.77667403]
[1756358132967,0.22018289,112980.0,112970.0,0.77667403]
[1756358133759,0.22018289,112980.0,112970.0,0.41289663]
[1756358133961,0.22018289,112980.0,112970.0,0.78533403]
[1756358135562,0.22018289,112980.0,112970.0,0.77667403]
[1756358135862,0.22018289,112980.0,112970.0,0.40423663]
[1756358136164,0.22018289,112980.0,112970.0,0.77667403]
[1756358136564,0.22018289,112980.0,112970.0,0.40423663]
[1756358136764,0.22018289,112980.0,112970.0,0.77667403]
[1756358137166,0.22018289,112980.0,112970.0,0.51447403]
[1756358138767,0.22018289,112980.0,112970.0,0.52313403]
[1756358141160,0.22018289,112980.0,112970.0,0.13203663]
[1756358141361,0.22018289,112980.0,112970.0,0.50447403]
[1756358142661,0.22018289,112980.0,112970.0,0.14069663]
[1756358142869,0.16357289,112980.0,112970.0,0.51313403]
[1756358143466,0.22018289,112980.0,112970.0,0.51313403]
[1756358144065,0.16357289,112980.0,112970.0,0.51313403]
[1756358144270,0.09763688,112980.0,112970.0,0.51313403]
[1756358144671,0.09763688,112980.0,112970.0,0.76313403]
[1756358146266,0.09763688,112980.0,112970.0,1.02533403]
[1756358149870,0.09763688,112980.0,112970.0,0.65289663]
[1756358150074,0.15449688,112980.0,112970.0,1.02533403]
[1756358150275,0.11288688,112980.0,112970.0,1.02533403]
[1756358150576,0.09763688,112980.0,112970.0,1.02533403]
[1756358151168,0.21364688,112980.0,112970.0,0.65289663]
[1756358151374,0.09763688,112980.0,112970.0,1.02533403]
[1756358151870,0.13518688,112980.0,112970.0,0.65289663]
[1756358152076,0.16015688,112980.0,112970.0,1.59569403]
[1756358152372,0.21364688,112980.0,112970.0,0.29832313]
[1756358152676,0.83608428,112980.0,112970.0,0.27422313]
[1756358153173,0.21364688,112980.0,112970.0,0.67816053]
[1756358153374,0.09763688,112980.0,112970.0,0.77533403]
[1756358153574,0.11288688,112980.0,112970.0,0.77533403]
[1756358153774,0.09763688,112980.0,112970.0,0.77533403]
[1756358156780,0.11288688,112980.0,112970.0,0.77533403]
[1756358156978,0.21364688,112980.0,112970.0,0.40289663]
[1756358157280,0.21364688,112980.0,112970.0,0.76667413]
[1756358157482,0.21364688,112980.0,112970.0,0.39423673]
[1756358157682,0.21364688,112980.0,112970.0,0.76667413]
[1756358158179,0.21364688,112980.0,112970.0,0.50447413]
[1756358158368,0.21364688,112980.0,112970.0,0.04352313]
[1756358158569,0.21364688,112980.0,112970.0,0.02966313]
[1756358159382,0.4887112,112980.0,112970.0,0.11817673]
[1756358159582,0.46364688,112980.0,112970.0,0.11817673]
[1756358160278,0.46364688,112980.0,112970.0,0.38286053]
[1756358160582,0.46364688,112980.0,112970.0,0.11817673]
[1756358160781,0.46364688,112980.0,112970.0,0.50447413]
[1756358161183,0.46364688,112980.0,112970.0,0.13203673]
[1756358161384,0.46364688,112980.0,112970.0,0.50447413]
[1756358161683,0.48871065,112980.0,112970.0,0.50447413]
[1756358161980,0.18522065,112980.0,112970.0,0.51313413]
[1756358162284,0.13518688,112980.0,112970.0,0.51313413]
[1756358162679,0.16878688,112980.0,112970.0,0.51313413]
[1756358162878,0.21364688,112980.0,112970.0,0.13203673]
[1756358163080,0.21364688,112980.0,112970.0,0.50447413]
[1756358163777,0.21364688,112980.0,112970.0,0.13203673]
[1756358163978,0.21364688,112980.0,112970.0,0.50447413]
[1756358164182,0.23871038,112980.0,112970.0,0.50447413]
[1756358165386,0.21364688,112980.0,112970.0,0.50447413]
[1756358166186,0.23870968,112980.0,112970.0,0.50447413]
[1756358166775,0.21364688,112980.0,112970.0,0.50447413]
[1756358167087,0.18867688,112980.0,112970.0,0.51313413]
[1756358167288,0.21364688,112980.0,112970.0,0.51313413]
[1756358168485,0.21364688,112980.0,112970.0,0.14069673]
[1756358168686,0.21364688,112980.0,112970.0,0.51313413]
[1756358169389,0.18004688,112980.0,112970.0,0.51313413]
[1756358169583,0.13518688,112980.0,112970.0,0.51313413]
[1756358170083,0.11288688,112980.0,112970.0,0.76313413]
[1756358170788,0.09763688,112980.0,112970.0,0.76313413]
[1756358171392,0.11288688,112980.0,112970.0,0.76313413]
[1756358171691,0.09763688,112980.0,112970.0,0.76313413]
[1756358172793,0.11288688,112980.0,112970.0,0.76313413]
[1756358172994,0.09763688,112980.0,112970.0,0.76313413]
[1756358173290,0.11288688,112980.0,112970.0,0.76313413]
[1756358174491,0.09763688,112980.0,112970.0,0.76313413]
[1756358175394,0.11288688,112980.0,112970.0,0.76313413]
[1756358175893,0.11288688,112980.0,112970.0,1.02533413]
[1756358176094,0.17001688,112980.0,112970.0,1.47289673]
[1756358176292,0.17001688,112980.0,112970.0,1.84533413]
[1756358177793,0.17001688,112980.0,112970.0,1.84529413]
[1756358178696,0.17001688,112980.0,112970.0,1.02533413]